lending/lending_fUSD_20260411
["ID","MTS","AMOUNT","RATE_DAILY","PERIOD"]
[420256351,1775852801550,-727.18,0.00046525,120]
[420256352,1775852801609,-727.18,0.00046525,120]
[420256353,1775852801684,-727.18,0.00046525,120]
[420256354,1775852801737,-727.18,0.00046525,120]
[420256355,1775852801787,-727.18,0.00046525,120]
[420256356,1775852801843,-727.18,0.00046525,120]
[420256357,1775852801907,-727.18,0.00046525,120]
[420256358,1775852801958,-727.18,0.00046525,120]
[420256359,1775852802021,-500.0,0.00046525,120]
[420256360,1775852802074,-727.18,0.00046525,120]
[420256361,1775852802140,-500.0,0.00046525,120]
[420256362,1775852802193,-727.18,0.00046525,120]
[420256363,1775852802265,-500.0,0.00046525,120]
[420256364,1775852802332,-727.18,0.00046525,120]
[420256365,1775852802876,-500.0,0.00046525,120]
[420256366,1775852802945,-727.18,0.00046525,120]
[420256367,1775852803019,-500.0,0.00046525,120]
[420256368,1775852803073,-727.18,0.00046525,120]
[420256369,1775852803127,-500.0,0.00046525,120]
[420256370,1775852803206,-727.34774991,0.00046525,120]
[420256371,1775852803298,-500.0,0.00046525,120]
[420256372,1775852803357,-500.0,0.00046525,120]
[420256373,1775852803411,-500.0,0.00046525,120]
[420256374,1775852803473,-500.0,0.00046525,120]
[420256375,1775852803522,-251.32128881,0.00046525,120]
[420256376,1775852803580,-500.0,0.00046525,120]
[420256377,1775852803636,-221.95984337,0.00046525,120]
[420256378,1775852803723,-500.0,0.00046525,120]
[420256379,1775852803781,-500.0,0.00046525,120]
[420256380,1775852803875,-500.0,0.00046525,120]
[420256381,1775852803967,-500.0,0.00046525,120]
[420256382,1775852804033,-500.0,0.00046525,120]
[420256383,1775852804092,-500.0,0.00046525,120]
[420256384,1775852804168,-500.0,0.00046525,120]
[420256385,1775852804217,-500.0,0.00046525,120]
[420256386,1775852804269,-500.0,0.00046525,120]
[420256387,1775852804320,-500.0,0.00046525,120]
[420256388,1775852804376,-500.0,0.00046525,120]
[420256389,1775852804429,-500.0,0.00046525,120]
[420256390,1775852804503,-500.0,0.00046525,120]
[420256391,1775852804561,-500.0,0.00046525,120]
[420256392,1775852804611,-500.0,0.00046525,120]
[420256393,1775852804667,-500.0,0.00046525,120]
[420256394,1775852804752,-601.83028967,0.00046525,120]
[420256395,1775852804831,-500.0,0.00046525,120]
[420256396,1775852804886,-500.0,0.00046525,120]
[420256397,1775852804941,-182.05461481,0.00046525,120]
[420256398,1775852804994,-500.0,0.00046525,120]
[420256399,1775852805044,-500.0,0.00046525,120]
[420256400,1775852805095,-558.4274789,0.00046525,120]
[420256401,1775852805145,-500.0,0.00046525,120]
[420256402,1775852805198,-500.0,0.00046525,120]
[420256403,1775852805257,-500.0,0.00046525,120]
[420256404,1775852805307,-500.0,0.00046525,120]
[420256405,1775852805404,-500.0,0.00046525,120]
[420256406,1775852805455,-524.86230698,0.00046525,120]
[420256407,1775852805550,-500.0,0.00046525,120]
[420256408,1775852805679,-500.0,0.00046525,120]
[420256409,1775852805735,-500.0,0.00046525,120]
[420256410,1775852805795,-500.0,0.00046525,120]
[420256411,1775852805856,-500.0,0.00046525,120]
[420256412,1775852805907,-373.07674316,0.00046525,120]
[420256413,1775852805995,-500.0,0.00046525,120]
[420256414,1775852806061,-500.0,0.00046525,120]
[420256415,1775852806204,-500.0,0.00046525,120]
[420256416,1775852806307,-307.05413244,0.00046525,120]
[420256417,1775852806385,-500.0,0.00046525,120]
[420256418,1775852806530,-525.10846633,0.00046525,120]
[420256419,1775852806618,-500.0,0.00046525,120]
[420256420,1775852806686,-500.0,0.00046525,120]
[420256421,1775852806747,-500.0,0.00046525,120]
[420256422,1775852806823,-500.0,0.00046525,120]
[420256423,1775852806930,-500.0,0.00046525,120]
[420256424,1775852807002,-500.0,0.00046525,120]
[420256425,1775852807077,-500.0,0.00046525,120]
[420256426,1775852807144,-500.0,0.00046525,120]
[420256427,1775852807211,-500.0,0.00046525,120]
[420256428,1775852807269,-500.0,0.00046525,120]
[420256429,1775852807324,-500.0,0.00046525,120]
[420256430,1775852807374,-213.21668706,0.00046525,120]
[420256431,1775852807425,-500.0,0.00046525,120]
[420256432,1775852807494,-500.0,0.00046525,120]
[420256433,1775852807579,-500.0,0.00046525,120]
[420256434,1775852807661,-500.0,0.00046525,120]
[420256435,1775852807748,-500.0,0.00046525,120]
[420256436,1775852807833,-500.0,0.00046525,120]
[420256437,1775852807910,-500.0,0.00046525,120]
[420256438,1775852807961,-500.0,0.00046525,120]
[420256439,1775852808012,-500.0,0.00046525,120]
[420256440,1775852808061,-500.0,0.00046525,120]
[420256441,1775852808109,-500.0,0.00046525,120]
[420256442,1775852808159,-166.25655167,0.00046525,120]
[420256443,1775852808212,-500.0,0.00046525,120]
[420256444,1775852808273,-500.0,0.00046525,120]
[420256445,1775852808334,-430.41968779,0.00046525,120]
[420256446,1775852808390,-500.0,0.00046525,120]
[420256447,1775852808477,-500.0,0.00046525,120]
[420256448,1775852808554,-666.61,0.00046525,120]
[420256449,1775852808621,-599.44215779,0.00046525,120]
[420256450,1775852808703,-666.61,0.00046525,120]
[420256451,1775852808758,-666.61,0.00046525,120]
[420256452,1775852808831,-666.61,0.00046525,120]
[420256453,1775852808883,-666.61,0.00046525,120]
[420256454,1775852808939,-666.61,0.00046525,120]
[420256455,1775852808998,-666.61,0.00046525,120]
[420256456,1775852809048,-666.61,0.00046525,120]
[420256457,1775852809097,-666.61,0.00046525,120]
[420256458,1775852809151,-666.61,0.00046525,120]
[420256459,1775852809616,-204.68219085,0.00046525,120]
[420256460,1775852809683,-666.61,0.00046525,120]
[420256461,1775852809754,-666.61,0.00046525,120]
[420256462,1775852809809,-666.61,0.00046525,120]
[420256463,1775852809869,-666.61,0.00046525,120]
[420256464,1775852809919,-666.61,0.00046525,120]
[420256465,1775852809973,-500.0,0.00046525,120]
[420256466,1775852810027,-666.61,0.00046525,120]
[420256467,1775852810080,-500.0,0.00046525,120]
[420256468,1775852810130,-666.61,0.00046525,120]
[420256469,1775852810183,-500.0,0.00046525,120]
[420256470,1775852810256,-666.61,0.00046525,120]
[420256471,1775852810384,-500.0,0.00046525,120]
[420256472,1775852810630,-666.61,0.00046525,120]
[420256473,1775852810732,-500.0,0.00046525,120]
[420256474,1775852810785,-666.61,0.00046525,120]
[420256475,1775852810835,-500.0,0.00046525,120]
[420256476,1775852810907,-500.0,0.00046525,120]
[420256477,1775852810963,-666.61,0.00046525,120]
[420256478,1775852811018,-500.0,0.00046525,120]
[420256479,1775852811079,-237.91788759,0.00046525,120]
[420256480,1775852811153,-666.61,0.00046525,120]
[420256481,1775852811221,-666.61,0.00046525,120]
[420256482,1775852811275,-666.66853481,0.00046525,120]
[420256483,1775852811326,-411.97628134,0.00046525,120]
[420256484,1775852811401,-500.0,0.00046525,120]
[420256485,1775852811450,-150.63902033,0.00046525,120]
[420256486,1775852811525,-500.0,0.00046525,120]
[420256487,1775852811581,-500.0,0.00046525,120]
[420256488,1775852811638,-387.08099784,0.00046525,120]
[420256489,1775852811698,-500.0,0.00046525,120]
[420256490,1775852811748,-606.60805307,0.00046525,120]
[420256491,1775852811795,-500.0,0.00046525,120]
[420256492,1775852811842,-500.0,0.00046525,120]
[420256493,1775852811888,-500.0,0.00046525,120]
[420256494,1775852811934,-500.0,0.00046525,120]
[420256495,1775852811985,-500.0,0.00046525,120]
[420256496,1775852812033,-557.31454019,0.00046525,120]
[420256497,1775852812081,-500.0,0.00046525,120]
[420256498,1775852812131,-500.0,0.00046525,120]
[420256499,1775852812181,-500.0,0.00046525,120]
[420256500,1775852812231,-500.0,0.00046525,120]
[420256501,1775852812285,-500.0,0.00046525,120]
[420256502,1775852812346,-500.0,0.00046525,120]
[420256503,1775852812400,-500.0,0.00046525,120]
[420256504,1775852812486,-500.0,0.00046525,120]
[420256505,1775852812560,-500.0,0.00046525,120]
[420256506,1775852812630,-500.0,0.00046525,120]
[420256507,1775852812698,-2320.34,0.00046525,120]
[420256508,1775852812772,-500.0,0.00046525,120]
[420256509,1775852812838,-2320.34,0.00046525,120]
[420256510,1775852812922,-500.0,0.00046525,120]
[420256511,1775852812985,-2320.34,0.00046525,120]
[420256512,1775852813053,-500.0,0.00046525,120]
[420256513,1775852813111,-2320.34,0.00046525,120]
[420256514,1775852813201,-2320.34,0.00046525,120]
[420256515,1775852813308,-2320.34,0.00046525,120]
[420256516,1775852813374,-2320.34,0.00046525,120]
[420256517,1775852813432,-500.0,0.00046525,120]
[420256518,1775852813526,-2320.34,0.00046525,120]
[420256519,1775852813579,-500.0,0.00046525,120]
[420256520,1775852813688,-2320.34,0.00046525,120]
[420256521,1775852813863,-458.39881362,0.00046525,120]
[420256522,1775852814065,-2320.34,0.00046525,120]
[420256523,1775852814164,-2320.34,0.00046525,120]
[420256524,1775852814239,-2320.34,0.00046525,120]
[420256525,1775852814310,-2320.34,0.00046525,120]
[420256526,1775852814419,-2320.34,0.00046525,120]
[420256527,1775852814540,-2320.34,0.00046525,120]
[420256528,1775852814634,-2320.34,0.00046525,120]
[420256529,1775852814725,-2320.34,0.00046525,120]
[420256530,1775852814814,-2320.34,0.00046525,120]
[420256531,1775852814868,-2320.34,0.00046525,120]
[420256532,1775852814925,-2320.34,0.00046525,120]
[420256533,1775852815013,-2320.34,0.00046525,120]
[420256534,1775852815091,-2320.34,0.00046525,120]
[420256535,1775852815149,-2320.37225387,0.00046525,120]
[420256536,1775852815201,-500.0,0.00046525,120]
[420256537,1775852815252,-500.0,0.00046525,120]
[420256538,1775852815302,-500.0,0.00046525,120]
[420256539,1775852815351,-500.0,0.00046525,120]
[420256540,1775852815400,-500.0,0.00046525,120]
[420256541,1775852815454,-500.0,0.00046525,120]
[420256542,1775852815503,-500.0,0.00046525,120]
[420256543,1775852815551,-500.0,0.00046525,120]
[420256544,1775852815602,-500.0,0.00046525,120]
[420256545,1775852815654,-500.0,0.00046525,120]
[420256546,1775852815722,-500.0,0.00046525,120]
[420256547,1775852815776,-500.0,0.00046525,120]
[420256548,1775852815844,-500.0,0.00046525,120]
[420256549,1775852815902,-500.0,0.00046525,120]
[420256550,1775852815957,-500.0,0.00046525,120]
[420256551,1775852816026,-274.90704546,0.00046525,120]
[420256552,1775852816077,-504.59891581,0.00046525,120]
[420256553,1775852816127,-192.74982124,0.00046525,120]
[420256554,1775852816542,-500.0,0.00046525,120]
[420256555,1775852816594,-500.0,0.00046525,120]
[420256556,1775852816661,-500.0,0.00046525,120]
[420256557,1775852816720,-500.0,0.00046525,120]
[420256558,1775852816771,-500.0,0.00046525,120]
[420256559,1775852816839,-500.0,0.00046525,120]
[420256560,1775852816892,-500.0,0.00046525,120]
[420256561,1775852816948,-500.0,0.00046525,120]
[420256562,1775852817048,-500.0,0.00046525,120]
[420256563,1775852817182,-500.0,0.00046525,120]
[420256564,1775852817235,-500.0,0.00046525,120]
[420256565,1775852817289,-574.05113895,0.00046525,120]
[420256566,1775852817343,-500.0,0.00046525,120]
[420256567,1775852817400,-500.0,0.00046525,120]
[420256568,1775852817455,-500.0,0.00046525,120]
[420256569,1775852817514,-500.0,0.00046525,120]
[420256570,1775852817566,-567.05881038,0.00046525,120]
[420256571,1775852817619,-361.53573628,0.00046525,120]
[420256572,1775852817674,-500.0,0.00046525,120]
[420256573,1775852817733,-153.16718876,0.00046525,120]
[420256574,1775852817816,-3242.92595181,0.00046525,120]
[420256575,1775852817899,-500.0,0.00046525,120]
[420256576,1775852817967,-500.0,0.00046525,120]
[420256577,1775852818032,-500.0,0.00046525,120]
[420256578,1775852818090,-500.0,0.00046525,120]
[420256579,1775852818144,-500.0,0.00046525,120]
[420256580,1775852818214,-500.0,0.00046525,120]
[420256581,1775852818268,-153.73,0.00046525,120]
[420256582,1775852818325,-672.5854669,0.00046525,60]
[420256583,1775852818383,-8408.0,0.00046525,120]
[420256584,1775852818449,-691.31550191,0.00046525,120]
[420256585,1775852818530,-1239.40816235,0.00046525,30]
[420256586,1775852818605,-552.35279352,0.00046525,30]
[420256587,1775852818674,-412.9757229,0.00046525,30]
[420256588,1775852818728,-2549.22076098,0.00046525,120]
[420256589,1775852818791,-2934.96170348,0.00046525,120]
[420256590,1775852818850,-2764.16379138,0.00046525,91]
[420256591,1775852818903,-1121.14840827,0.00046525,60]
[420256592,1775852818951,-1558.26619517,0.00046525,30]
[420256593,1775852819003,-953.8253654,0.00046525,30]
[420256594,1775852819107,-1222.25603643,0.00046525,30]
[420256595,1775852819177,-2654.24108027,0.00046525,30]
[420256596,1775852819256,-3098.45454051,0.00046525,30]
[420256597,1775852819323,-3145.37493366,0.00046525,120]
[420256598,1775852819377,-4556.33369327,0.00046525,120]
[420256599,1775852819425,-21223.61023803,0.00046525,120]
[420256600,1775852819475,-2208.44130597,0.00046525,30]
[420256601,1775852819524,-3012.66995389,0.00046525,120]
[420256602,1775852819598,-804.72243273,0.00046525,30]
[420256603,1775852819686,-158.57642994,0.00046525,120]
[420256604,1775852819739,-2990.61380753,0.00046525,60]
[420256605,1775852819805,-3091.30884348,0.00046525,30]
[420256606,1775852819902,-5000.0,0.00046525,60]
[420256607,1775852819956,-632.99607213,0.00046525,120]
[420256608,1775852820018,-1809.88425331,0.00046525,30]
[420256609,1775852820074,-3424.00846354,0.00046525,120]
[420256610,1775852844151,-1637.14147999,0.00013901,30]
[420256611,1775852844232,-1637.14147999,0.00013945,30]
[420256612,1775852844292,-1637.14147999,0.00013973,30]
[420256613,1775852844373,-1637.14147999,0.00013974,30]
[420256614,1775852844463,-1637.14147999,0.00015001,30]
[420256615,1775852844527,-818.57073999,0.0001502,30]
[420256616,1775852844636,-250000.0,0.000168,33]
[420256617,1775852844729,-240448.28000001,0.000196,30]
[420256618,1775852844788,-550.0,0.000196,30]
[420256619,1775852844854,-550.0,0.000196,30]
[420256620,1775852844921,-550.0,0.000196,30]
[420256621,1775852844982,-550.0,0.000196,30]
[420256622,1775852845039,-550.0,0.000196,30]
[420256623,1775852845509,-305.0,0.000196,30]
[420256624,1775852845583,-200.0,0.000196,30]
[420256625,1775852845688,-200.0,0.000196,30]
[420256626,1775852845762,-200.0,0.000196,30]
[420256627,1775852845850,-200.0,0.000196,30]
[420256628,1775852845955,-200.0,0.000196,30]
[420256629,1775852846030,-161.0,0.000196,30]
[420256630,1775852846098,-1950.0,0.000196,30]
[420256631,1775852846165,-1950.0,0.000196,30]
[420256632,1775852846241,-1950.0,0.000196,30]
[420256633,1775852846320,-1799.0,0.000196,30]
[420256634,1775852846525,-186.09,0.0002,30]
[420256635,1775852846693,-186.09,0.0002,30]
[420256636,1775852846770,-186.1,0.0002,30]
[420256637,1775852846884,-279.69596329,0.0002,30]
[420256638,1775852847011,-1666.97,0.0002,30]
[420256639,1775852847093,-640.27640573,0.0002,30]
[420256640,1775852847163,-306.63819528,0.0002,120]
[420256641,1775852847223,-150.41679442,0.0002,60]
[420256642,1775852847283,-3000.0,0.0002,30]
[420256643,1775852847349,-3000.0,0.0002,30]
[420256644,1775852847412,-2926.0,0.0002,30]
[420256645,1775852847490,-1850.0,0.0002,30]
[420256646,1775852847752,-1850.0,0.0002,30]
[420256647,1775852847853,-1553.0,0.0002,30]
[420256648,1775852847934,-1250.0,0.0002,30]
[420256649,1775852847999,-1250.0,0.0002,30]
[420256650,1775852848075,-1182.0,0.0002,30]
[420256651,1775852848134,-5000.0,0.0002,30]
[420256652,1775852848200,-5000.0,0.0002,30]
[420256653,1775852848261,-5000.0,0.0002,30]
[420256654,1775852848329,-5000.0,0.0002,30]
[420256655,1775852848407,-5000.0,0.0002,30]
[420256656,1775852848496,-5000.0,0.0002,30]
[420256657,1775852848567,-4350.0,0.0002,30]
[420256658,1775852848627,-4350.0,0.0002,30]
[420256659,1775852848727,-4332.0,0.0002,30]
[420256660,1775852848821,-186.09,0.00020548,30]
[420256661,1775852848970,-186.09,0.00020548,30]
[420256662,1775852849134,-186.1,0.00020548,30]
[420256663,1775852849215,-186.09,0.00021918,30]
[420256664,1775852849272,-186.09,0.00021918,30]
[420256665,1775852849361,-186.1,0.00021918,30]
[420256666,1775852849428,-1333.79023833,0.00022,30]
[420256667,1775852849485,-162.64533184,0.00022712,30]
[420256668,1775852849548,-162.64533184,0.00022959,30]
[420256669,1775852849611,-251.37704667,0.00023739,30]
[420256670,1775852849683,-319.0,0.00024,55]
[420256671,1775852849888,-150.0,0.0002415,30]
[420256672,1775852849951,-6370.0,0.00024658,120]
[420256673,1775852850041,-251.37704667,0.00024694,30]
[420256674,1775852850123,-454.30708981,0.00024698,46]
[420256675,1775852850191,-500.0,0.00025,62]
[420256676,1775852850258,-2603.74853128,0.00025,30]
[420256677,1775852850321,-258.92197741,0.00025,60]
[420256678,1775852850374,-1631.42705414,0.00025,30]
[420256679,1775852850444,-150.12278392,0.00025,120]
[420256680,1775852850499,-150.0,0.0002558,120]
[420256681,1775852850582,-251.37704667,0.00025649,60]
[420256682,1775852850638,-420.76,0.000258,120]
[420256683,1775852850694,-500.0,0.00026,61]
[420256684,1775852850753,-332.85,0.00026027,120]
[420256685,1775852850806,-2000.0,0.00026027,37]
[420256686,1775852850860,-250056.5218424,0.000261,30]
[420256687,1775852850916,-1444.0,0.00026137,120]
[420256688,1775852850972,-332.85,0.00026274,120]
[420256689,1775852851027,-293.71301823,0.00026397,30]
[420256690,1775852851085,-236.55599331,0.00026397,30]
[420256691,1775852851163,-260.18948308,0.00026397,30]
[420256692,1775852851252,-332.86,0.00026521,120]
[420256693,1775852851342,-251.37704667,0.00026604,60]
[420256694,1775852851424,-1000.0,0.0002686,120]
[420256695,1775852851482,-800.0,0.00026986,120]
[420256696,1775852851558,-800.0,0.00026986,120]
[420256697,1775852851633,-500.96828797,0.00027,60]
[420256698,1775852851719,-474.24475802,0.00027,30]
[420256699,1775852851790,-4000.06,0.00027,30]
[420256700,1775852851927,-14672.44472249,0.00027,120]
[420256701,1775852852035,-156.68,0.00027142,120]
[420256702,1775852852129,-187.0,0.0002727,120]
[420256703,1775852852193,-678.42554763,0.000273,30]
[420256704,1775852852264,-678.42554762,0.000273,30]
[420256705,1775852852333,-1985.53333333,0.0002737,30]
[420256706,1775852852429,-1985.53333333,0.0002737,30]
[420256707,1775852852514,-2383.8,0.0002737,30]
[420256708,1775852852569,-2383.8,0.0002737,30]
[420256709,1775852852625,-2000.0,0.0002739,120]
[420256710,1775852852684,-440.56952734,0.00027397,30]
[420256711,1775852852745,-354.83398996,0.00027397,30]
[420256712,1775852852807,-390.28422462,0.00027397,30]
[420256713,1775852852897,-1375.76,0.00027397,120]
[420256714,1775852852963,-384.0,0.00027397,30]
[420256715,1775852853050,-1000.0,0.00027397,120]
[420256716,1775852853131,-550.0,0.00027397,30]
[420256717,1775852853473,-2000.0,0.00027397,47]
[420256718,1775852853531,-530.0,0.000274,120]
[420256719,1775852853598,-6783.41103347,0.000274,30]
[420256720,1775852853668,-251.37704667,0.00027559,60]
[420256721,1775852853739,-1375.76,0.00027644,120]
[420256722,1775852853832,-1375.78,0.0002789,120]
[420256723,1775852853913,-269.66019048,0.00027973,120]
[420256724,1775852853983,-599.0,0.00028,30]
[420256725,1775852854068,-8099240.83609613,0.00028,120]
[420256726,1775852998382,150.0,0.00010489,2]
[420256731,1775853031956,-500.0,0.00010814,2]
[420256732,1775853031969,-250.0,0.00010864,2]
[420256733,1775853031980,-174.45,0.00010914,2]
[420256734,1775853032002,-196.79201029,0.00011137,2]
[420256735,1775853032013,-250.0,0.00011308,2]
[420256736,1775853032021,-150.0,0.00011787,2]
[420256737,1775853032031,-1200.0,0.00011894,2]
[420256738,1775853032047,-300.0,0.00011894,2]
[420256739,1775853032057,-5000.0,0.00011895,2]
[420256740,1775853032069,-250.0,0.00011895,2]
[420256741,1775853032082,-195.0,0.00011895,2]
[420256742,1775853032095,-6939.853672,0.00012473,2]
[420256743,1775853032108,-150.0,0.000125,2]
[420256744,1775853032116,-1500.0,0.00012536,2]
[420256745,1775853032137,-172.3,0.00012545,2]
[420256746,1775853032154,-150.0,0.00012586,2]
[420256747,1775853032164,-11396.1,0.00012587,2]
[420256748,1775853032179,-150.99,0.00012587,2]
[420256749,1775853032195,-150.99,0.00012587,2]
[420256750,1775853032205,-999.99,0.00012587,2]
[420256751,1775853032218,-299.99,0.00012587,2]
[420256752,1775853032231,-560.0,0.00012675,2]
[420256755,1775853032257,-1513.28,0.000127,2]
[420256756,1775853032267,-9999.99,0.000127,2]
[420256758,1775853032291,-440.0,0.00012701,2]
[420256760,1775853032319,-334.0,0.00012726,2]
[420256762,1775853032328,-194.6134,0.00012736,2]
[420256765,1775853032337,-1852.42,0.00012746,2]
[420256767,1775853032360,-1174.0,0.00012751,2]
[420256770,1775853032381,-166.66,0.00013026,2]
[420256772,1775853032394,-334.0,0.00013058,2]
[420256774,1775853032406,-1680.0,0.00013083,2]
[420256776,1775853032423,-506.0,0.000131,2]
[420256778,1775853032433,-3240.0,0.00013425,2]
[420256780,1775853032444,-166.66,0.00013456,2]
[420256782,1775853032468,-150.0,0.00013539,2]
[420256784,1775853032478,-255.0,0.00013682,2]
[420256786,1775853032500,-161.94,0.00013699,2]
[420256788,1775853032509,-2424.04314365,0.00013701,2]
[420256790,1775853032518,-807.21557413,0.00013701,2]
[420256792,1775853032536,-8994.9573,0.00013701,2]
[420256794,1775853032557,-2500.0,0.00013701,2]
[420256796,1775853032566,-344.351,0.00013701,2]
[420256798,1775853032578,-521.3683501,0.00013791,2]
[420256799,1775853032595,-173.7265,0.000138,2]
[420256801,1775853032610,-500.0,0.000138,2]
[420256802,1775853032629,-373.96164272,0.000138,2]
[420256803,1775853032662,-500.0,0.000138,2]
[420256804,1775853032688,-500.0,0.000138,2]
[420256805,1775853032701,-500.0,0.000138,2]
[420256806,1775853032715,-479.43323998,0.000138,2]
[420256807,1775853032746,-645.06744441,0.000138,2]
[420256808,1775853032760,-500.0,0.000138,2]
[420256809,1775853032769,-183.37714649,0.000138,2]
[420256810,1775853032789,-4913.3414,0.00013801,2]
[420256811,1775853032803,-656058.22949697,0.00013801,2]
[420256812,1775853032819,-45374.76529972,0.00013801,2]
[420256813,1775853032837,-68997.08122223,0.00013801,2]
[420256814,1775853032855,-51837.95841072,0.00013801,2]
[420256815,1775853032885,-13127.04337363,0.00013801,2]
[420256816,1775853032934,-969.80549567,0.00013801,2]
[420256817,1775853032983,-5205.16495616,0.00013801,2]
[420256818,1775853032996,-13225.43526591,0.00013801,2]
[420256819,1775853033010,-1466.46,0.00013801,2]
[420256820,1775853033033,-32058.92328547,0.00013801,2]
[420256827,1775853038154,-650.0,0.00012411,2]
[420256828,1775853038166,-719.0,0.00012436,2]
[420256829,1775853038181,-221.0,0.0001246,2]
[420256830,1775853038192,-1368.83462306,0.00013801,2]
[420256831,1775853038219,-767.43131246,0.00013801,2]
[420256832,1775853038273,-855.8339036,0.00013801,2]
[420256833,1775853038351,-547.4565743,0.00013801,2]
[420256834,1775853038381,-608139.5767801,0.00013801,2]
[420256835,1775853038394,-26116.6607,0.00013801,2]
[420256836,1775853038405,-928094.88748795,0.00013801,2]
[420256837,1775853038487,-1822.82670332,0.00013801,2]
[420256842,1775853040286,-305.11934148,0.00013801,2]
[420256851,1775853040360,-338.004,0.00013801,2]
[420256857,1775853040978,-44700.0,0.00013801,2]
[420256867,1775853043948,-150.0,0.00011679,2]
[420256868,1775853043973,-12575.25192724,0.00013801,2]
[420256869,1775853044607,-1265.91989,0.00013801,2]
[420256870,1775853044647,-10429.72555252,0.00013801,2]
[420256871,1775853044695,-1139.33803329,0.00013801,2]
[420256872,1775853044712,-2190.4621032,0.00013801,2]
[420256873,1775853044747,-1945.09563396,0.00013801,2]
[420256874,1775853044764,-5635.87272,0.00013801,2]
[420256875,1775853044975,-2362.12788691,0.00013801,2]
[420256876,1775853044986,-52394.79458475,0.00013801,2]
[420256877,1775853045000,-47855.67753538,0.00013801,2]
[420256878,1775853045017,-501.27224602,0.00013873,2]
[420256879,1775853045027,-500.0,0.00013873,2]
[420256880,1775853045036,-500.0,0.00013873,2]
[420256881,1775853045059,-500.0,0.00013873,2]
[420256882,1775853045069,-500.0,0.00013873,2]
[420256883,1775853045079,-500.0,0.00013873,2]
[420256884,1775853045096,-375.98401017,0.00013873,2]
[420256885,1775853045105,-500.0,0.00013873,2]
[420256886,1775853045118,-500.0,0.00013873,2]
[420256887,1775853045127,-500.0,0.00013873,2]
[420256888,1775853045146,-166.66,0.00013886,2]
[420256889,1775853045159,-151.0,0.00013893,2]
[420256890,1775853045189,-151.0,0.00013893,2]
[420256891,1775853045204,-151.0,0.00013893,2]
[420256892,1775853045220,-151.0,0.00013893,2]
[420256893,1775853045229,-151.0,0.00013893,2]
[420256894,1775853045244,-151.0,0.00013893,2]
[420256895,1775853045258,-151.0,0.00013893,2]
[420256896,1775853045269,-151.0,0.00013893,2]
[420256897,1775853045279,-151.0,0.00013893,2]
[420256898,1775853045297,-151.0,0.00013893,2]
[420256899,1775853045307,-151.0,0.00013893,2]
[420256900,1775853045335,-155.45941456,0.00013893,2]
[420256901,1775853045345,-500.0,0.000139,2]
[420256902,1775853045356,-500.0,0.000139,2]
[420256903,1775853045375,-500.0,0.000139,2]
[420256904,1775853045386,-500.0,0.000139,2]
[420256905,1775853045398,-500.0,0.000139,2]
[420256906,1775853045407,-500.0,0.000139,2]
[420256907,1775853045428,-150.0,0.000139,2]
[420256908,1775853045441,-2424.0431436,0.00013945,2]
[420256909,1775853045451,-204.63067592,0.00013973,2]
[420256910,1775853045480,-501.62477611,0.00013973,2]
[420256911,1775853045491,-362.28838287,0.00013973,2]